bitfinex/quotes_BTCUSD_20251226
["timestamp","ask_amount","ask_price","bid_price","bid_amount"]
[1766742831698,0.02430769,88874.0,88858.0,0.21531]
[1766742832020,0.20821,88874.0,88859.0,0.01125378]
[1766742832223,0.20821,88874.0,88858.0,0.22656391]
[1766742833375,0.20821,88874.0,88858.0,0.21531]
[1766742834745,0.21946188,88874.0,88858.0,0.21531]
[1766742835264,0.20821,88874.0,88858.0,0.22656391]
[1766742835430,0.21946188,88874.0,88858.0,0.21531]
[1766742835636,0.21946201,88873.0,88858.0,0.21531]
[1766742835849,0.20821,88873.0,88858.0,0.21531]
[1766742837063,0.20821,88873.0,88858.0,0.22656391]
[1766742838108,0.20821,88873.0,88858.0,0.21531]
[1766742838957,0.20821,88873.0,88858.0,0.22656391]
[1766742839253,0.20821,88873.0,88859.0,0.01125378]
[1766742840349,0.20821,88873.0,88858.0,0.22656391]
[1766742841976,0.20821,88873.0,88859.0,0.01125378]
[1766742842507,0.20821,88873.0,88858.0,0.22656391]
[1766742844182,0.20821,88873.0,88859.0,0.01125378]
[1766742845700,0.21946201,88873.0,88858.0,0.21531]
[1766742846017,0.20821,88873.0,88858.0,0.21531]
[1766742846782,0.20821,88873.0,88858.0,0.22656391]
[1766742847010,0.20821,88873.0,88858.0,0.21531]
[1766742849378,0.21946201,88873.0,88858.0,0.21531]
[1766742849542,0.20821,88873.0,88858.0,0.21531]
[1766742849952,0.21946201,88873.0,88858.0,0.21531]
[1766742850645,0.01125213,88872.0,88858.0,0.21531]
[1766742850850,0.21946201,88873.0,88858.0,0.21531]
[1766742851060,0.01125213,88872.0,88858.0,0.21531]
[1766742851990,0.21946201,88873.0,88858.0,0.21531]
[1766742853667,0.01125213,88872.0,88858.0,0.21531]
[1766742854474,0.21946201,88873.0,88858.0,0.21531]
[1766742856473,0.01125201,88873.0,88857.0,0.01128]
[1766742861075,0.01125201,88873.0,88857.0,0.02253403]
[1766742861571,0.01125188,88874.0,88857.0,0.02253403]
[1766742861871,0.01125201,88873.0,88857.0,0.01128]
[1766742862291,0.01125188,88874.0,88857.0,0.02253403]
[1766742864329,0.01125201,88873.0,88857.0,0.01128]
[1766742864535,0.01125188,88874.0,88857.0,0.02253403]
[1766742864762,0.01125201,88873.0,88857.0,0.01128]
[1766742866478,0.01125188,88874.0,88857.0,0.02253403]
[1766742866834,0.01125201,88873.0,88857.0,0.01128]
[1766742866990,0.03557725,88875.0,88857.0,0.07880414]
[1766742867334,0.01128,88876.0,88859.0,0.01125378]
[1766742867828,0.02253163,88876.0,88859.0,0.01125378]
[1766742868617,0.01125175,88875.0,88858.0,0.06752315]
[1766742869533,0.01125188,88874.0,88857.0,0.01128]
[1766742869714,0.01125226,88871.0,88857.0,0.01128]
[1766742871066,0.01125239,88870.0,88857.0,0.01128]
[1766742871686,0.01125251,88869.0,88857.0,0.01128]
[1766742871889,0.01125239,88870.0,88857.0,0.01128]
[1766742872074,0.06751384,88871.0,88857.0,0.01128]
[1766742872075,0.01125226,88871.0,88857.0,0.01128]
[1766742872480,0.0243256,88874.0,88857.0,0.0788039]
[1766742872651,0.01125175,88875.0,88859.0,0.01125378]
[1766742872834,0.01125175,88875.0,88858.0,0.01125391]
[1766742873856,0.01128,88876.0,88861.0,0.01125353]
[1766742874057,0.01128,88876.0,88859.0,0.01125378]
[1766742874058,0.01125175,88875.0,88859.0,0.01125378]
[1766742874669,0.02253163,88876.0,88858.0,0.01125391]
[1766742874876,0.02253163,88876.0,88859.0,0.01125378]
[1766742876212,0.01125175,88875.0,88857.0,0.02253403]
[1766742876804,0.01125175,88875.0,88858.0,0.01125391]
[1766742877830,0.01125175,88875.0,88856.0,0.07880452]
[1766742878186,0.01125175,88875.0,88858.0,0.01125391]
[1766742879011,0.01125175,88875.0,88857.0,0.01125403]
[1766742880122,0.02253163,88876.0,88859.0,0.01125378]
[1766742880529,0.02253163,88876.0,88856.0,0.01125416]
[1766742880677,0.01125213,88872.0,88856.0,0.01128]
[1766742881489,0.01125226,88871.0,88856.0,0.01128]
[1766742881931,0.01125213,88872.0,88856.0,0.01128]
[1766742882129,0.01125226,88871.0,88856.0,0.01128]
[1766742882496,0.01125239,88870.0,88856.0,0.01128]
[1766742882699,0.01125226,88871.0,88856.0,0.01128]
[1766742883738,0.08058656,88872.0,88856.0,0.01128]
[1766742884150,0.0243256,88872.0,88856.0,0.01125416]
[1766742884302,0.01125201,88873.0,88856.0,0.02253416]
[1766742885686,0.01125188,88874.0,88857.0,0.01125403]
[1766742885894,0.01125201,88873.0,88856.0,0.02253416]
[1766742886305,7.25e-05,88873.0,88857.0,0.01125403]
[1766742886824,0.01132451,88873.0,88857.0,0.01125403]
[1766742886961,7.25e-05,88873.0,88857.0,0.01125403]
[1766742887541,0.01132451,88873.0,88856.0,0.02253416]
[1766742888195,7.25e-05,88873.0,88857.0,0.01125403]
[1766742888599,0.01132451,88873.0,88856.0,0.02253416]
[1766742888777,7.25e-05,88873.0,88856.0,0.02253416]
[1766742889506,7.25e-05,88873.0,88857.0,0.01125403]
[1766742889714,0.01132451,88873.0,88856.0,0.02253416]
[1766742890173,0.01125213,88872.0,88856.0,0.01128]
[1766742890510,0.01125213,88872.0,88856.0,0.02253416]
[1766742890706,0.01132451,88873.0,88856.0,0.02253416]
[1766742890912,0.01125213,88872.0,88856.0,0.02253416]
[1766742891517,0.01132451,88873.0,88857.0,0.01125403]
[1766742892011,0.01132451,88873.0,88856.0,0.02253416]
[1766742892378,0.01132451,88873.0,88856.0,0.01128]
[1766742892379,0.01125213,88872.0,88856.0,0.01128]
[1766742892586,0.01132451,88873.0,88856.0,0.01128]
[1766742893545,0.01125213,88872.0,88856.0,0.02253416]
[1766742893749,0.01125213,88872.0,88856.0,0.01128]
[1766742893943,0.01132451,88873.0,88856.0,0.02253416]
[1766742894095,0.01125213,88872.0,88856.0,0.01128]
[1766742895631,0.01125213,88872.0,88856.0,0.02253416]
[1766742896145,0.01125213,88872.0,88856.0,0.01128]
[1766742896337,0.01125213,88872.0,88856.0,0.02253416]
[1766742896738,0.01132451,88873.0,88857.0,0.01125403]
[1766742896944,0.01132451,88873.0,88856.0,0.02253416]
[1766742897236,0.01125213,88872.0,88856.0,0.01128]
[1766742897446,0.01125213,88872.0,88856.0,0.02253416]
[1766742897625,0.01132451,88873.0,88856.0,0.02253416]
[1766742897855,0.01125213,88872.0,88856.0,0.02253416]
[1766742898010,0.01132451,88873.0,88856.0,0.02253416]
[1766742898212,0.01132451,88873.0,88857.0,0.01125403]
[1766742898617,0.01132451,88873.0,88856.0,0.02253416]
[1766742901373,0.01132451,88873.0,88857.0,0.01125403]
[1766742901578,0.01132451,88873.0,88856.0,0.02253416]
[1766742902177,0.01125213,88872.0,88856.0,0.01128]
[1766742902351,0.01125213,88872.0,88856.0,0.02253416]
[1766742902553,0.01125226,88871.0,88857.0,0.01128]
[1766742903485,0.03564328,88873.0,88857.0,0.01128]
[1766742903646,0.01125213,88872.0,88857.0,0.01128]
[1766742904181,0.01125226,88871.0,88857.0,0.01128]
[1766742905583,0.01125213,88872.0,88857.0,0.01128]
[1766742906377,0.01125226,88871.0,88857.0,0.01128]
[1766742906583,0.01125213,88872.0,88857.0,0.01128]
[1766742906747,0.01125226,88871.0,88857.0,0.01128]
[1766742907479,0.03564328,88873.0,88857.0,0.01128]
[1766742907649,0.01132451,88873.0,88857.0,0.01128]
[1766742907860,0.01125213,88872.0,88857.0,0.01128]
[1766742908696,7.25e-05,88873.0,88857.0,0.01128]
[1766742909078,0.01132451,88873.0,88857.0,0.02253403]
[1766742909728,0.01132451,88873.0,88857.0,0.01128]
[1766742910319,7.25e-05,88873.0,88857.0,0.01128]
[1766742910520,7.25e-05,88873.0,88860.0,0.01125365]
[1766742910744,7.25e-05,88873.0,88861.0,0.01125353]
[1766742911634,7.25e-05,88873.0,88862.0,0.0112534]
[1766742911837,5e-07,88873.0,88865.0,0.01125302]
[1766742912044,5e-07,88873.0,88868.0,0.01125264]
[1766742912213,5e-07,88873.0,88867.0,0.01125277]
[1766742912384,5e-07,88873.0,88865.0,0.01125302]
[1766742912586,5e-07,88873.0,88866.0,0.01125289]
[1766742915193,5e-07,88873.0,88864.0,0.01128]
[1766742915778,5e-07,88873.0,88854.0,0.01125441]
[1766742915779,0.00055,88864.0,88854.0,0.01125441]
[1766742915980,0.00055,88864.0,88855.0,0.02253429]
[1766742916395,5e-07,88873.0,88856.0,0.01125416]
[1766742916706,5e-07,88873.0,88858.0,0.01125391]
[1766742916707,0.1860605,88873.0,88858.0,0.01125391]
[1766742916907,0.21037877,88872.0,88857.0,0.01125403]
[1766742917062,0.18606,88872.0,88857.0,0.01125403]
[1766742918014,0.18606,88872.0,88858.0,0.01125391]
[1766742918194,0.18606,88872.0,88857.0,0.01125403]
[1766742919029,0.19731213,88872.0,88855.0,0.01125429]
[1766742919171,0.18606,88872.0,88858.0,0.01128]
[1766742919565,0.18606,88872.0,88859.0,0.01125378]
[1766742919770,0.18606,88872.0,88860.0,0.18168]
[1766742920812,0.18606,88872.0,88860.0,0.19293365]
[1766742921555,0.18606,88872.0,88860.0,0.18168]
[1766742924876,0.19731213,88872.0,88860.0,0.18168]
[1766742925060,0.18606,88872.0,88860.0,0.18168]
[1766742928588,0.18606,88872.0,88861.0,0.01128]
[1766742928940,0.18606,88872.0,88862.0,0.01128]
[1766742929341,0.09772229,88872.0,88862.0,0.01128]
[1766742931215,5e-07,88873.0,88862.0,0.01128]
[1766742931350,5e-07,88873.0,88862.0,0.0225334]
[1766742931555,5e-07,88873.0,88863.0,0.01125327]
[1766742931798,5e-07,88873.0,88864.0,0.01125315]
[1766742932000,5e-07,88873.0,88865.0,0.01125302]
[1766742932198,5e-07,88873.0,88864.0,0.01125315]
[1766742932605,5e-07,88873.0,88863.0,0.01125327]
[1766742932801,5e-07,88873.0,88862.0,0.0225334]
[1766742933004,5e-07,88873.0,88863.0,0.01125327]
[1766742933829,5e-07,88873.0,88862.0,0.0225334]
[1766742934039,5e-07,88873.0,88862.0,0.01128]
[1766742934253,5e-07,88873.0,88862.0,0.0225334]
[1766742935343,5e-07,88873.0,88862.0,0.01128]
[1766742935647,5e-07,88873.0,88862.0,0.0225334]
[1766742936144,5e-07,88873.0,88862.0,0.01128]
[1766742936642,5e-07,88873.0,88862.0,0.0225334]
[1766742936850,5e-07,88873.0,88862.0,0.01128]
[1766742939677,0.01125251,88873.0,88862.0,0.011208]
[1766742939900,0.01125251,88873.0,88852.0,0.01125467]
[1766742939901,0.01125327,88863.0,88849.0,0.1461]
[1766742940061,0.01125327,88863.0,88850.0,0.01128]
[1766742940272,0.19731315,88864.0,88851.0,0.03377805]
[1766742940589,0.18606,88864.0,88851.0,0.03377805]
[1766742940970,0.18606,88864.0,88852.0,0.18168]
[1766742941498,0.18606,88855.0,88849.0,0.01128]
[1766742942507,0.01128,88858.0,88849.0,0.01128]
[1766742942666,0.01128,88858.0,88855.0,0.000549]
[1766742943139,0.01128,88858.0,88850.0,0.20198492]
[1766742943284,0.01128,88858.0,88850.0,0.19073]
[1766742943470,0.01128,88858.0,88850.0,0.20198492]
[1766742943871,0.010731,88858.0,88850.0,0.19073]
[1766742954775,0.010731,88858.0,88849.0,0.01128]
[1766742954971,0.000549,88850.0,88849.0,0.01128]
[1766742955479,0.20205491,88858.0,88849.0,0.01128]
[1766742956029,0.190801,88858.0,88849.0,0.01128]
[1766742956236,0.190801,88858.0,88849.0,0.010731]
[1766742956438,0.20205491,88858.0,88849.0,0.010731]
[1766742956889,0.01125403,88857.0,88849.0,0.010731]
[1766742957096,0.20205491,88858.0,88849.0,0.010731]
[1766742957299,0.190801,88858.0,88849.0,0.010731]
[1766742958495,0.01125581,88857.0,88849.0,0.010731]
[1766742960274,0.01070681,88857.0,88849.0,0.010731]
[1766742969061,0.01070681,88857.0,88840.0,0.40160164]
[1766742969062,0.01125416,88856.0,88841.0,0.01125353]
[1766742969422,0.01125429,88855.0,88841.0,0.01070453]
[1766742969621,0.01125441,88854.0,88841.0,0.01070453]
[1766742969824,0.01125441,88854.0,88840.0,0.01128]
[1766742970465,0.01125479,88851.0,88840.0,0.00044831]
[1766742970780,0.01125492,88850.0,88840.0,0.00044831]
[1766742970994,0.01125492,88850.0,88835.0,0.15738]
[1766742970995,0.01125492,88850.0,88835.0,0.01128]
[1766742971306,0.01125479,88851.0,88834.0,0.01125695]
[1766742971522,0.02253454,88849.0,88834.0,0.01125695]
[1766742972236,0.02198554,88849.0,88840.0,0.01125619]
[1766742972350,0.02198554,88849.0,88839.0,0.01125631]
[1766742972553,0.02198554,88849.0,88836.0,0.01125669]
[1766742972751,0.02198554,88849.0,88837.0,0.01125657]
[1766742972976,0.02198554,88849.0,88840.0,0.01125619]
[1766742973177,0.02198554,88849.0,88839.0,0.01125631]
[1766742973785,0.02198554,88849.0,88838.0,0.01125644]
[1766742973950,0.02198554,88849.0,88839.0,0.01125631]
[1766742974890,0.02198554,88849.0,88838.0,0.06753825]
[1766742974891,0.02198554,88849.0,88838.0,0.01125644]
[1766742975113,0.02198554,88849.0,88839.0,0.01125631]
[1766742975294,0.02198554,88849.0,88837.0,0.06753904]
[1766742975819,0.02198554,88849.0,88839.0,0.01125631]
[1766742976341,0.02198554,88849.0,88840.0,0.01125619]
[1766742977655,0.02198554,88849.0,88839.0,0.01125631]
[1766742978003,0.01128,88851.0,88842.0,0.01125593]
[1766742978201,0.01128,88851.0,88843.0,0.01125581]
[1766742978439,0.02198554,88850.0,88843.0,0.01125581]
[1766742979406,0.01128,88851.0,88843.0,0.01125581]
[1766742979613,0.0450638,88851.0,88843.0,0.01125581]
[1766742980017,0.0450638,88851.0,88844.0,0.01125568]
[1766742980212,0.0450638,88851.0,88843.0,0.01125581]
[1766742980532,0.0450638,88851.0,88844.0,0.18645]
[1766742981353,0.01128,88851.0,88844.0,0.18645]
[1766742981754,0.01128,88851.0,88844.0,0.01125568]
[1766742982076,0.01128,88851.0,88843.0,0.01125581]
[1766742982245,0.01125365,88860.0,88843.0,0.01125581]
[1766742982246,0.0112534,88862.0,88851.0,0.00055]
[1766742982428,0.18405365,88860.0,88844.0,0.19770568]
[1766742982634,0.03378182,88855.0,88844.0,0.19770568]
[1766742982832,0.03378182,88855.0,88845.0,0.01125555]
[1766742983080,0.03378182,88855.0,88844.0,0.19770568]
[1766742984277,0.03378182,88855.0,88845.0,0.01125555]
[1766742984479,0.03378182,88855.0,88844.0,0.19770568]
[1766742986698,0.03378182,88855.0,88845.0,0.01125555]
[1766742986994,0.03378182,88855.0,88844.0,0.19770568]
[1766742987297,0.03378182,88855.0,88845.0,0.01125555]
[1766742987599,0.03378182,88855.0,88844.0,0.19770568]
[1766742987894,0.03378182,88855.0,88844.0,0.01125568]
[1766742988102,0.03378182,88855.0,88843.0,0.01125581]
[1766742988284,0.03378182,88855.0,88842.0,0.01125593]
[1766742988464,0.03378182,88855.0,88841.0,0.01125606]
[1766742988998,0.03378182,88855.0,88842.0,0.01125593]
[1766742990203,0.20658182,88855.0,88842.0,0.01125593]
[1766742991323,0.20658182,88855.0,88843.0,0.01125581]
[1766742992819,0.20658182,88855.0,88842.0,0.01125593]
[1766742993284,0.20658182,88855.0,88843.0,0.01125581]
[1766742993484,0.20658182,88855.0,88841.0,0.01125606]
[1766742993697,0.20658182,88855.0,88842.0,0.01125593]
[1766742994307,0.20658182,88855.0,88843.0,0.01125581]
[1766742994860,0.1728,88855.0,88844.0,0.01125568]
[1766742995021,0.01125606,88854.0,88844.0,0.01125568]
[1766742995725,0.1728,88855.0,88844.0,0.01125568]
[1766742996129,0.1728,88855.0,88843.0,0.01125581]
[1766742996578,0.1728,88855.0,88844.0,0.01125568]
[1766742997142,0.1728,88855.0,88843.0,0.01125581]
[1766742997349,0.1728,88855.0,88842.0,0.01125593]
[1766742998097,0.1728,88855.0,88844.0,0.01125568]
[1766742998250,0.01128,88857.0,88844.0,0.18645]
[1766742998606,0.01128,88857.0,88844.0,0.19770568]
[1766742998785,0.18408,88857.0,88844.0,0.19770568]
[1766742999149,0.18408,88857.0,88845.0,0.01125555]
[1766742999786,0.18408,88857.0,88846.0,0.01125543]
[1766743000219,0.18408,88857.0,88847.0,0.0112553]
[1766743000456,0.18408,88857.0,88848.0,0.01125517]
[1766743000679,0.18408,88857.0,88847.0,0.0112553]
[1766743000891,0.18408,88857.0,88848.0,0.01125517]
[1766743001335,0.18408,88857.0,88846.0,0.01125543]
[1766743001567,0.01128,88856.0,88847.0,0.0112553]
[1766743001781,0.01128,88856.0,88846.0,0.01125543]
[1766743002231,0.01125593,88858.0,88850.0,0.01125492]
[1766743002504,0.01125239,88870.0,88857.0,0.18645]
[1766743002505,0.02431986,88862.0,88857.0,0.18645]
[1766743002731,0.01128,88868.0,88857.0,0.18645]
[1766743002732,0.03377923,88866.0,88857.0,0.18645]
[1766743003616,0.04503212,88866.0,88857.0,0.185901]
[1766743003849,0.01125302,88865.0,88857.0,0.185901]
[1766743004057,0.01125315,88864.0,88857.0,0.185901]
[1766743004489,0.045032,88867.0,88857.0,0.185901]
[1766743006233,0.01125289,88866.0,88857.0,0.185901]
[1766743006630,0.045032,88867.0,88857.0,0.185901]
[1766743006631,0.03377923,88867.0,88857.0,0.185901]
[1766743007067,0.045032,88867.0,88857.0,0.185901]
[1766743007439,0.03377923,88867.0,88857.0,0.185901]
[1766743008651,0.045032,88867.0,88857.0,0.185901]
[1766743008852,0.03377923,88867.0,88857.0,0.185901]
[1766743010306,0.03377923,88867.0,88857.0,0.07286675]
[1766743010467,0.03377923,88867.0,88857.0,0.01614897]
[1766743010868,0.045032,88867.0,88857.0,0.01614897]
[1766743011458,0.01125277,88867.0,88857.0,0.01614897]
[1766743011658,0.01614897,88866.0,88857.0,0.01614897]
[1766743012098,0.01614897,88866.0,88852.0,0.01125467]
[1766743012295,0.01614897,88866.0,88853.0,0.18472]
[1766743012496,0.01614897,88866.0,88852.0,0.01125467]
[1766743013308,0.01614897,88866.0,88851.0,0.01125479]
[1766743013618,0.01614897,88866.0,88852.0,0.01125467]
[1766743013981,0.01614897,88866.0,88851.0,0.01125479]
[1766743014163,0.01614897,88866.0,88852.0,0.01125467]
[1766743014367,0.01614897,88866.0,88851.0,0.01125479]
[1766743015524,0.02740186,88866.0,88851.0,0.01125479]
[1766743015771,0.01614897,88866.0,88852.0,0.01125467]
[1766743016363,0.08833804,88865.0,88852.0,0.01125467]
[1766743016557,0.08833804,88865.0,88853.0,0.18472]
[1766743017060,0.08833804,88865.0,88853.0,0.17637313]
[1766743017408,0.25968804,88865.0,88853.0,0.17637313]
[1766743021602,0.25968804,88865.0,88853.0,0.18762767]
[1766743022596,0.25968804,88865.0,88853.0,0.17637313]
[1766743023317,0.02430969,88864.0,88853.0,0.17637313]
[1766743023518,0.25968804,88865.0,88853.0,0.17637313]
[1766743023686,0.25968804,88865.0,88853.0,0.18762767]
[1766743024187,0.25968804,88865.0,88853.0,0.17637313]
[1766743024426,0.25968804,88865.0,88853.0,0.18762767]
[1766743025426,0.25968804,88865.0,88854.0,0.01125441]
[1766743025788,0.25968804,88865.0,88853.0,0.18762767]
[1766743026236,0.25968804,88865.0,88854.0,0.01125441]
[1766743026434,0.25968804,88865.0,88855.0,0.00714326]
[1766743026591,0.25968804,88865.0,88858.0,0.05626952]
[1766743026798,0.25968804,88865.0,88859.0,0.01125378]
[1766743026998,0.25968804,88865.0,88860.0,0.01125365]
[1766743027197,0.25968804,88865.0,88861.0,0.06752091]
[1766743027452,0.08778904,88865.0,88862.0,0.0112534]
[1766743027600,0.08778904,88865.0,88861.0,0.00491804]
[1766743027787,0.08778904,88865.0,88862.0,0.06751995]
[1766743027986,0.08778904,88865.0,88862.0,0.05623995]
[1766743029539,0.01128,88871.0,88866.0,0.01125289]
[1766743029738,0.01128,88871.0,88868.0,0.01125264]
[1766743030081,0.01128,88871.0,88868.0,0.06751555]
[1766743030270,0.01073,88871.0,88868.0,0.06751555]
[1766743030440,0.01073,88871.0,88869.0,0.04458227]
[1766743030646,0.01073,88871.0,88868.0,0.01125264]
[1766743030852,0.01073,88871.0,88868.0,0.06751545]
[1766743031364,0.01073,88871.0,88869.0,0.05626218]
[1766743031932,0.01073,88871.0,88868.0,0.06751545]
[1766743032881,0.01073,88871.0,88868.0,0.01125264]
[1766743033081,0.01073,88871.0,88866.0,0.01125289]
[1766743033402,0.01073,88871.0,88867.0,0.01125277]
[1766743033700,0.01073,88871.0,88865.0,0.01125302]
[1766743034061,0.01073,88871.0,88864.0,0.16376]
[1766743034807,0.000549,88864.0,88860.0,0.02253365]
[1766743034966,0.01073,88871.0,88860.0,0.01128]
[1766743036288,0.01073,88871.0,88860.0,0.02253365]
[1766743036972,0.01073,88871.0,88861.0,0.01125353]
[1766743037172,0.01073,88871.0,88860.0,0.02253365]
[1766743037371,0.01073,88871.0,88861.0,0.01125353]
[1766743037771,0.01073,88871.0,88862.0,0.0112534]
[1766743039572,0.01073,88871.0,88861.0,0.01125353]
[1766743040233,0.01073,88871.0,88862.0,0.0112534]
[1766743041195,0.1931,88874.0,88862.0,0.0112534]
[1766743041617,0.1931,88874.0,88861.0,0.01125353]
[1766743041894,0.1931,88874.0,88862.0,0.0112534]
[1766743042094,0.1931,88874.0,88863.0,0.01125327]
[1766743042616,0.1931,88874.0,88862.0,0.0112534]
[1766743042813,0.1931,88874.0,88863.0,0.01125327]
[1766743043435,0.1931,88874.0,88862.0,0.0112534]
[1766743045657,0.1931,88874.0,88861.0,0.01125353]
[1766743046089,0.1931,88874.0,88862.0,0.0112534]
[1766743046416,0.1931,88874.0,88863.0,0.01125327]
[1766743048125,0.1931,88874.0,88862.0,0.0112534]
[1766743049341,0.1931,88874.0,88863.0,0.01125327]
[1766743049540,0.1931,88874.0,88862.0,0.0112534]
[1766743050626,0.1931,88874.0,88863.0,0.01125327]
[1766743050841,0.1931,88874.0,88862.0,0.0112534]
[1766743052128,0.1931,88874.0,88863.0,0.01125327]
[1766743053018,0.1931,88874.0,88862.0,0.01111473]
[1766743053221,0.1931,88874.0,88863.0,0.01125327]
[1766743054016,0.1931,88874.0,88864.0,0.01125315]
[1766743054334,0.1931,88874.0,88863.0,0.01125327]
[1766743056542,0.1931,88874.0,88864.0,0.01125315]
[1766743059440,0.1931,88874.0,88863.0,0.06751914]
[1766743059829,0.1931,88874.0,88864.0,0.01125315]
[1766743062830,0.1931,88874.0,88863.0,0.06751914]
[1766743064032,0.1931,88874.0,88862.0,0.01111473]
[1766743064234,0.1931,88874.0,88861.0,0.01125353]
[1766743064418,0.19695619,88873.0,88862.0,0.0112534]
[1766743064626,0.1726305,88873.0,88863.0,0.01125327]
[1766743065465,0.1726305,88873.0,88862.0,0.0112534]
[1766743065668,0.1726305,88873.0,88863.0,0.01125327]
[1766743066507,0.1726305,88873.0,88860.0,0.02253365]
[1766743066907,0.1726305,88873.0,88861.0,0.01125353]
[1766743067113,0.1726305,88873.0,88860.0,0.02253365]
[1766743068029,0.1726305,88873.0,88861.0,0.01125353]
[1766743068253,0.1726305,88873.0,88862.0,0.0112534]
[1766743068730,0.1726305,88873.0,88861.0,0.01125353]
[1766743069055,0.1726305,88873.0,88862.0,0.0112534]
[1766743070722,0.1726305,88873.0,88861.0,0.01125353]
[1766743072488,0.1726305,88873.0,88862.0,0.0112534]
[1766743076728,0.1726305,88873.0,88861.0,0.01125353]
[1766743077294,0.1726305,88873.0,88862.0,0.0112534]
[1766743077773,0.1726305,88873.0,88860.0,0.01128]
[1766743077959,0.1726305,88873.0,88860.0,0.02253365]
[1766743078373,0.1726305,88873.0,88861.0,0.01125353]
[1766743078593,5e-07,88873.0,88863.0,0.01125327]
[1766743079294,5e-07,88873.0,88862.0,0.0112534]
[1766743079591,5e-07,88873.0,88861.0,0.01125353]
[1766743080622,5e-07,88873.0,88860.0,0.07880161]
[1766743081121,5e-07,88873.0,88860.0,0.02253365]
[1766743081542,5e-07,88873.0,88860.0,0.01128]
[1766743081733,0.0675156,88869.0,88849.0,0.06753027]
[1766743081944,0.01125277,88867.0,88851.0,0.01125479]
[1766743082173,0.01125277,88867.0,88847.0,0.1911592]
[1766743082174,0.05626547,88865.0,88847.0,0.1911592]
[1766743082397,0.06751966,88863.0,88847.0,0.15738]
[1766743082575,0.0112534,88862.0,88847.0,0.15738]
[1766743082753,0.01125327,88863.0,88847.0,0.1686353]
[1766743082954,0.0112534,88862.0,88847.0,0.1686353]
[1766743083377,0.0112534,88862.0,88847.0,0.15738]
[1766743083892,0.01125353,88861.0,88847.0,0.1461]
[1766743084051,0.01125378,88859.0,88847.0,0.01128]
[1766743084258,0.06752386,88858.0,88847.0,0.01128]
[1766743084606,0.01125378,88859.0,88847.0,0.01128]
[1766743085171,0.01128,88860.0,88847.0,0.01128]
[1766743086264,0.02253365,88860.0,88847.0,0.01128]
[1766743087234,0.01128,88860.0,88847.0,0.01128]
[1766743087511,0.02253365,88860.0,88847.0,0.01128]
[1766743088264,0.01125378,88859.0,88847.0,0.01128]
[1766743089381,0.01125391,88858.0,88847.0,0.01128]
[1766743089575,0.01125378,88859.0,88847.0,0.01128]
[1766743092344,0.01125403,88857.0,88847.0,0.01128]
[1766743092517,0.0112553,88847.0,88842.0,0.01128]
[1766743092717,0.0112553,88847.0,88829.0,0.01125758]
[1766743092718,0.0112553,88847.0,88834.0,0.01128]
[1766743093501,0.05627451,88851.0,88834.0,0.01128]
[1766743093502,0.01125454,88853.0,88835.0,0.06754054]
[1766743093978,0.01128,88853.0,88838.0,0.01125644]
[1766743094564,0.01128,88853.0,88840.0,0.01125619]
[1766743094705,0.01128,88853.0,88841.0,0.01125606]
[1766743095312,0.01128,88853.0,88839.0,0.01125631]
[1766743095562,0.01128,88853.0,88840.0,0.01125619]
[1766743096609,0.01128,88853.0,88839.0,0.01125631]
[1766743096742,0.01128,88853.0,88840.0,0.01125619]
[1766743096947,0.01128,88853.0,88839.0,0.01125631]
[1766743097167,0.01128,88853.0,88840.0,0.01125619]
[1766743097586,0.01128,88853.0,88839.0,0.01125631]
[1766743098102,0.01128,88853.0,88840.0,0.01125619]
[1766743098886,0.01128,88853.0,88841.0,0.01125606]
[1766743099068,0.01128,88853.0,88840.0,0.01125619]
[1766743100450,0.01128,88853.0,88841.0,0.01125606]
[1766743100780,0.01125391,88858.0,88842.0,0.01125593]
[1766743101219,0.01128,88854.0,88843.0,0.01125581]
[1766743101423,0.01128,88854.0,88842.0,0.01125593]
[1766743103000,0.01128,88854.0,88843.0,0.01125581]
[1766743103338,0.01128,88854.0,88842.0,0.01125593]
[1766743104233,0.01128,88854.0,88843.0,0.01125581]
[1766743104417,0.01128,88854.0,88842.0,0.01125593]
[1766743106730,0.01128,88854.0,88842.0,0.06753522]
[1766743106934,0.01128,88854.0,88842.0,0.01125593]
[1766743107587,0.01128,88854.0,88843.0,0.01125581]
[1766743110748,0.01128,88856.0,88852.0,0.000549]
[1766743110970,0.01128,88856.0,88843.0,0.01125581]
[1766743110971,0.01128,88856.0,88844.0,0.01125568]
[1766743111163,0.01128,88856.0,88845.0,0.01125555]
[1766743111370,0.01128,88856.0,88844.0,0.01125568]
[1766743111577,0.01128,88856.0,88842.0,0.01125593]
[1766743111777,0.01128,88856.0,88841.0,0.01125606]
[1766743112148,0.01128,88856.0,88840.0,0.01125619]
[1766743112341,0.02253416,88856.0,88840.0,0.01125619]
[1766743112579,0.02253416,88856.0,88841.0,0.01125606]
[1766743112917,0.01125429,88855.0,88841.0,0.01128]
[1766743113745,0.01125441,88854.0,88841.0,0.01128]
[1766743113946,0.01125429,88855.0,88841.0,0.01128]
[1766743114185,0.01125441,88854.0,88841.0,0.01128]
[1766743114388,0.02253416,88856.0,88841.0,0.01128]
[1766743114544,0.01125429,88855.0,88841.0,0.01128]
[1766743114945,0.01125441,88854.0,88841.0,0.01128]
[1766743115143,0.01125479,88851.0,88838.0,0.01128]
[1766743115343,0.01125454,88853.0,88838.0,0.02253644]
[1766743115569,0.01125441,88854.0,88838.0,0.02253644]
[1766743115806,0.01125441,88854.0,88839.0,0.01125631]
[1766743116998,0.01125454,88853.0,88838.0,0.02253644]
[1766743117587,0.01125441,88854.0,88838.0,0.02253644]
[1766743117786,0.01125454,88853.0,88838.0,0.02253644]
[1766743119527,0.01125467,88852.0,88838.0,0.01128]
[1766743120493,0.06752761,88853.0,88838.0,0.02253644]
[1766743120494,0.01125454,88853.0,88838.0,0.02253644]
[1766743120792,0.01125467,88852.0,88838.0,0.01128]
[1766743122909,0.01125492,88850.0,88838.0,0.01128]
[1766743124164,0.01125479,88851.0,88838.0,0.01128]
[1766743124923,0.01125505,88849.0,88838.0,0.01128]
[1766743125954,0.01109725,88850.0,88838.0,0.01128]
[1766743126281,0.01125505,88849.0,88838.0,0.01128]
[1766743126476,0.01109725,88850.0,88838.0,0.01128]
[1766743127996,0.01125479,88851.0,88838.0,0.01128]
[1766743128850,0.06752841,88852.0,88838.0,0.01128]
[1766743129255,0.01125492,88850.0,88835.0,0.01128]
[1766743129716,0.06752924,88851.0,88836.0,0.01125669]
[1766743129992,0.01125492,88850.0,88836.0,0.01125669]
[1766743130198,0.01125492,88850.0,88835.0,0.02253682]